fUSD/lending_fUSD_20260313
["ID","MTS","AMOUNT","RATE_DAILY","PERIOD"]
[408336114,1773442243183,-500.0,0.00032192,2]
[408336115,1773442243192,-150.0,0.00032219,2]
[408336116,1773442243202,-3351.33016008,0.00032268,2]
[408336117,1773442243212,-506.0,0.00032322,4]
[408336118,1773442243222,-750.0,0.0003236,5]
[408336119,1773442243231,-381.22744657,0.00032368,2]
[408336120,1773442243240,-2000.0,0.00032371,2]
[408336121,1773442243249,-150.0,0.00032413,2]
[408336122,1773442243259,-5054.0,0.000326,5]
[408336123,1773442243268,-161.0,0.00032736,11]
[408336124,1773442243278,-911.74691245,0.00032777,2]
[408336125,1773442243288,-196.89548506,0.0003282,2]
[408336126,1773442243298,-1705.02,0.0003286,2]
[408336127,1773442243307,-160.0,0.00032877,7]
[408336128,1773442243316,-500.0,0.00032877,30]
[408336129,1773442243325,-500.0,0.00032877,30]
[408336130,1773442243335,-500.0,0.00032877,30]
[408336131,1773442243344,-500.0,0.00032877,30]
[408336132,1773442243353,-500.0,0.00032877,30]
[408336133,1773442243522,-775.0,0.00032877,30]
[408336134,1773442243532,-500.0,0.00032877,2]
[408336135,1773442243543,-500.0,0.00032877,2]
[408336136,1773442243553,-500.0,0.00032877,2]
[408336137,1773442243563,-500.0,0.00032877,2]
[408336138,1773442243572,-500.0,0.00032877,2]
[408336139,1773442243581,-500.0,0.00032877,2]
[408336140,1773442243590,-382.76863842,0.00032877,2]
[408336141,1773442243600,-200.0,0.00032877,2]
[408336142,1773442243609,-250.0,0.00032877,26]
[408336143,1773442243622,-202.33,0.000329,2]
[408336144,1773442243632,-850.0,0.00032908,5]
[408336145,1773442243642,-172.88,0.00032925,120]
[408336146,1773442243651,-537.44,0.00033024,2]
[408336147,1773442243662,-623.35,0.0003316,2]
[408336148,1773442243671,-200.0,0.00033206,2]
[408336149,1773442243680,-185.99,0.00033367,2]
[408336150,1773442243690,-1150.0,0.00033392,7]
[408336151,1773442243699,-1150.0,0.00033392,7]
[408336152,1773442243708,-1150.0,0.00033392,7]
[408336153,1773442243718,-1150.0,0.00033392,7]
[408336154,1773442243727,-1150.0,0.00033392,7]
[408336155,1773442243737,-971.0,0.00033392,7]
[408336156,1773442243747,-235.0,0.00033392,7]
[408336157,1773442243756,-950.0,0.00033456,5]
[408336158,1773442243766,-200.0,0.00033538,2]
[408336159,1773442243775,-506.0,0.00033544,6]
[408336160,1773442243785,-1705.02,0.00033662,2]
[408336161,1773442243794,-5563.66501089,0.00033771,2]
[408336162,1773442243803,-150.0,0.0003383,2]
[408336163,1773442243812,-242.8,0.000339,7]
[408336164,1773442243822,-1050.0,0.00034004,5]
[408336165,1773442243831,-1705.02,0.00034463,2]
[408336166,1773442243840,-947.21633214,0.00034552,5]
[408336167,1773442243849,-3351.33016008,0.00034715,2]
[408336168,1773442243858,-506.0,0.00034767,7]
[408336169,1773442243867,-1500.0,0.00034795,2]
[408336170,1773442243876,-3508.0,0.00034917,2]
[408336171,1773442243886,-620.0,0.00034917,2]
[408336172,1773442243894,-1343.0,0.00034917,2]
[408336173,1773442243903,-414.0,0.00034917,2]
[408336174,1773442243912,-166.66,0.00035164,30]
[408336175,1773442243922,-1705.02,0.00035265,2]
[408336176,1773442243931,-150.0,0.00035522,2]
[408336177,1773442243940,-5563.66501089,0.00035724,2]
[408336178,1773442243949,-166.66,0.00035904,30]
[408336179,1773442243959,-506.0,0.00035989,9]
[408336180,1773442243968,-400.0,0.00036095,7]
[408336181,1773442243977,-400.0,0.00036095,7]
[408336182,1773442243987,-400.0,0.00036095,7]
[408336183,1773442243996,-400.0,0.00036095,7]
[408336184,1773442244005,-400.0,0.00036095,7]
[408336185,1773442244014,-352.0,0.00036095,7]
[408336186,1773442244023,-500.0,0.00036095,7]
[408336187,1773442244032,-500.0,0.00036095,7]
[408336188,1773442244042,-500.0,0.00036095,7]
[408336189,1773442244051,-500.0,0.00036095,7]
[408336190,1773442244060,-500.0,0.00036095,7]
[408336191,1773442244069,-289.0,0.00036095,7]
[408336192,1773442244079,-350.0,0.00036095,7]
[408336193,1773442244087,-350.0,0.00036095,7]
[408336194,1773442244097,-350.0,0.00036095,7]
[408336195,1773442244106,-350.0,0.00036095,7]
[408336196,1773442244116,-350.0,0.00036095,7]
[408336197,1773442244125,-281.0,0.00036095,7]
[408336198,1773442244134,-184.57326877,0.00036109,2]
[408336199,1773442244143,-157.1,0.00036294,2]
[408336200,1773442244154,-438.06,0.00036641,7]
[408336201,1773442244163,-166.66,0.00036644,30]
[408336202,1773442244172,-250.0,0.00036738,2]
[408336203,1773442244181,-250.0,0.00036738,2]
[408336204,1773442244191,-250.0,0.00036738,2]
[408336205,1773442244202,-250.0,0.00036738,2]
[408336206,1773442244212,-250.0,0.00036738,2]
[408336207,1773442244223,-250.0,0.00036738,2]
[408336208,1773442244232,-250.0,0.00036738,2]
[408336209,1773442244241,-250.0,0.00036738,2]
[408336210,1773442244251,-250.0,0.00036738,2]
[408336211,1773442244260,-180.0,0.00036738,2]
[408336212,1773442244270,-161.88,0.000368,60]
[408336213,1773442244281,-150.0,0.00036818,5]
[408336214,1773442244291,-290.0,0.00037115,2]
[408336215,1773442244300,-159.0,0.00037115,2]
[408336216,1773442244311,-3351.33016008,0.00037163,2]
[408336217,1773442244320,-506.0,0.00037212,10]
[408336218,1773442244329,-500.0,0.00037297,120]
[408336219,1773442244339,-1317.0,0.00037298,5]
[408336220,1773442244348,-150.0,0.00037298,2]
[408336221,1773442244358,-250.0,0.00037366,5]
[408336222,1773442244367,-166.66,0.00037385,30]
[408336223,1773442244377,-172.88,0.00037628,120]
[408336224,1773442244386,-1000.0,0.0003767,2]
[408336225,1773442244396,-1000.0,0.0003767,2]
[408336226,1773442244406,-1000.0,0.0003767,2]
[408336227,1773442244415,-1000.0,0.0003767,2]
[408336228,1773442244425,-1000.0,0.0003767,2]
[408336229,1773442244443,-5563.66501089,0.00037678,2]
[408336230,1773442244454,-1000.0,0.00037681,2]
[408336231,1773442244464,-1000.0,0.00037681,2]
[408336232,1773442244474,-1000.0,0.00037681,2]
[408336233,1773442244483,-1000.0,0.00037681,2]
[408336234,1773442244493,-1000.0,0.00037681,2]
[408336235,1773442244503,-238.86,0.00037822,2]
[408336236,1773442244512,-350.0,0.00037914,5]
[408336237,1773442244522,-3508.0,0.00037917,2]
[408336238,1773442244532,-620.0,0.00037917,2]
[408336239,1773442244542,-1343.0,0.00037917,2]
[408336240,1773442244551,-414.0,0.00037917,2]
[408336241,1773442244561,-626.41,0.00038034,30]
[408336242,1773442244571,-783.58,0.00038034,30]
[408336243,1773442244580,-166.66,0.00038125,30]
[408336244,1773442244590,-238.86,0.00038279,2]
[408336245,1773442244599,-381.87024125,0.00038329,120]
[408336246,1773442244608,-216.56848944,0.00038329,120]
[408336247,1773442244620,-506.0,0.00038434,11]
[408336248,1773442244630,-450.0,0.00038461,5]
[408336249,1773442244640,-154.99,0.00038501,2]
[408336250,1773442244650,-238.86,0.00038736,2]
[408336251,1773442244659,-500.0,0.00038767,2]
[408336252,1773442244669,-166.66,0.00038865,30]
[408336253,1773442244678,-500.0,0.00038924,120]
[408336254,1773442244688,-500.0,0.00038924,40]
[408336255,1773442244697,-500.0,0.00038924,45]
[408336256,1773442244707,-500.0,0.00038924,120]
[408336257,1773442244717,-500.0,0.00038924,120]
[408336258,1773442244726,-500.0,0.00038924,120]
[408336259,1773442244736,-550.0,0.00039009,5]
[408336260,1773442244745,-1414.55,0.00039094,53]
[408336261,1773442244755,-150.0,0.00039163,2]
[408336262,1773442244764,-154.99,0.00039321,2]
[408336263,1773442244773,-500.5198783,0.00039353,50]
[408336264,1773442244783,-650.0,0.00039557,5]
[408336265,1773442244793,-742.25,0.000396,30]
[408336266,1773442244802,-3351.33016008,0.0003961,2]
[408336267,1773442244811,-5563.66501089,0.00039632,2]
[408336268,1773442244821,-506.0,0.00039657,13]
[408336269,1773442244831,-151.03,0.0004,2]
[408336270,1773442244840,-151.03,0.0004,2]
[408336271,1773442244849,-151.03,0.0004,2]
[408336272,1773442244858,-151.03,0.0004,2]
[408336273,1773442244868,-151.03,0.0004,2]
[408336274,1773442244877,-151.03,0.0004,2]
[408336275,1773442244887,-151.03,0.0004,2]
[408336276,1773442244897,-1643.0,0.00040042,5]
[408336277,1773442244907,-750.0,0.00040105,5]
[408336278,1773442244917,-2000.0,0.000404,2]
[408336279,1773442244927,-300.0,0.00040479,2]
[408336280,1773442244936,-300.0,0.00040479,2]
[408336281,1773442244946,-300.0,0.00040479,2]
[408336282,1773442244955,-300.0,0.00040479,2]
[408336283,1773442244965,-300.0,0.00040479,2]
[408336284,1773442244975,-300.0,0.00040479,2]
[408336285,1773442244984,-300.0,0.00040479,2]
[408336286,1773442244993,-300.0,0.00040479,2]
[408336287,1773442245003,-330.0,0.00040479,2]
[408336288,1773442245012,-205.15338792,0.00040653,5]
[408336289,1773442245022,-506.0,0.00040879,14]
[408336290,1773442245032,-3508.0,0.00040917,2]
[408336291,1773442245043,-620.0,0.00040917,2]
[408336292,1773442245053,-1343.0,0.00040917,2]
[408336293,1773442245062,-347.77015813,0.00041096,2]
[408336294,1773442245072,-150.0,0.00041121,120]
[408336295,1773442245082,-157.1,0.00041478,2]
[408336296,1773442245092,-5563.66501089,0.00041585,15]
[408336297,1773442245102,-500.0,0.00041699,120]
[408336298,1773442245112,-500.0,0.00041699,30]
[408336299,1773442245121,-13231.0,0.000417,117]
[408336300,1773442245131,-3351.33016008,0.00042058,15]
[408336301,1773442245140,-506.0,0.00042102,16]
[408336302,1773442245150,-172.88,0.00042332,120]
[408336303,1773442245159,-469.82,0.00042546,120]
[408336304,1773442245169,-587.67,0.00042546,120]
[408336305,1773442245179,-150.0,0.0004265,60]
[408336306,1773442245188,-4000.0,0.0004274,14]
[408336307,1773442245198,-520.2958237,0.00042899,2]
[408336308,1773442245207,-409.80198591,0.00042899,2]
[408336309,1773442245217,-693.98525672,0.00042899,2]
[408336310,1773442245226,-1085.60939061,0.00042899,2]
[408336311,1773442245236,-300.0,0.00042899,2]
[408336312,1773442245245,-1049.85911639,0.00042899,2]
[408336313,1773442245255,-300.0,0.00042899,2]
[408336314,1773442245264,-857.2486977,0.00042899,2]
[408336315,1773442245274,-1872.00191987,0.00042899,2]
[408336316,1773442245283,-300.0,0.00042899,2]
[408336317,1773442245293,-300.0,0.00042899,2]
[408336318,1773442245302,-300.0,0.00042899,2]
[408336319,1773442245312,-307.08561637,0.00042899,2]
[408336320,1773442245321,-300.0,0.00042899,2]
[408336321,1773442245331,-300.0,0.00042899,2]
[408336322,1773442245340,-1085.60939061,0.00042899,2]
[408336323,1773442245349,-300.000001,0.00042899,2]
[408336324,1773442245358,-300.0,0.00042899,2]
[408336325,1773442245368,-300.0,0.00042899,2]
[408336326,1773442245378,-1048.79012737,0.00042899,2]
[408336327,1773442245387,-307.01279981,0.00042899,2]
[408336328,1773442245397,-300.0,0.00042899,2]
[408336329,1773442245407,-856.38273398,0.00042899,2]
[408336330,1773442245417,-300.0,0.00042899,2]
[408336331,1773442245427,-1185.06207586,0.00042899,2]
[408336332,1773442245437,-300.0,0.00042899,2]
[408336333,1773442245446,-300.0,0.00042899,2]
[408336334,1773442245456,-300.0,0.00042899,2]
[408336335,1773442245466,-308.28349388,0.00042899,2]
[408336336,1773442245476,-300.0,0.00042899,2]
[408336337,1773442245485,-300.0,0.00042899,2]
[408336338,1773442245494,-300.0,0.00042899,2]
[408336339,1773442245504,-459.9860075,0.00042899,2]
[408336340,1773442245513,-300.0,0.00042899,2]
[408336341,1773442245522,-300.0,0.00042899,2]
[408336342,1773442245531,-300.0,0.00042899,2]
[408336343,1773442245542,-300.0,0.00042899,2]
[408336344,1773442245551,-302.22433018,0.00042899,2]
[408336345,1773442245561,-300.0,0.00042899,2]
[408336346,1773442245570,-520.03833216,0.00042899,2]
[408336347,1773442245580,-300.0,0.00042899,2]
[408336348,1773442245589,-300.0,0.00042899,2]
[408336349,1773442245598,-300.0,0.00042899,2]
[408336350,1773442245609,-1473.6809,0.00042912,2]
[408336351,1773442245621,-150.0,0.00043,2]
[408336352,1773442245631,-2058.34947762,0.00043048,2]
[408336353,1773442245640,-2706.49911918,0.00043048,2]
[408336354,1773442245650,-8679.64062478,0.00043048,2]
[408336355,1773442245662,-2729.55164584,0.00043048,2]
[408336356,1773442245671,-150.0,0.00043177,120]
[408336357,1773442245681,-166.2056,0.000433,2]
[408336358,1773442245691,-506.0,0.00043324,17]
[408336359,1773442245701,-5563.66501089,0.00043539,15]
[408336360,1773442245711,-1444.0,0.00043562,120]
[408336361,1773442245720,-184.1621,0.000436,2]
[408336362,1773442245730,-500.0,0.00043779,90]
[408336363,1773442245740,-204.0586,0.000439,2]
[408336364,1773442245749,-3492.0,0.00043917,2]
[408336365,1773442245759,-620.0,0.00043917,2]
[408336366,1773442245768,-1343.0,0.00043917,2]
[408336367,1773442245778,-1473.6809,0.00043985,2]
[408336368,1773442245787,-2000.0,0.000441,2]
[408336369,1773442245797,-226.1047,0.000442,2]
[408336370,1773442245807,-2537.4762745,0.00044309,14]
[408336371,1773442245816,-200.0,0.00044345,2]
[408336372,1773442245826,-200.0,0.00044345,2]
[408336373,1773442245836,-200.0,0.00044345,2]
[408336374,1773442245845,-200.0,0.00044345,2]
[408336375,1773442245855,-200.0,0.00044345,2]
[408336376,1773442245864,-200.0,0.00044345,2]
[408336378,1773442245874,-200.0,0.00044345,2]
[408336379,1773442245883,-200.0,0.00044345,2]
[408336380,1773442245892,-200.0,0.00044345,2]
[408336381,1773442245901,-200.0,0.00044345,2]
[408336382,1773442245910,-200.0,0.00044345,2]
[408336383,1773442245919,-200.0,0.00044345,2]
[408336384,1773442245929,-200.0,0.00044345,2]
[408336385,1773442245938,-200.0,0.00044345,2]
[408336386,1773442245948,-200.0,0.00044345,2]
[408336387,1773442245957,-200.0,0.00044345,2]
[408336388,1773442245967,-200.0,0.00044345,2]
[408336389,1773442245976,-200.0,0.00044345,2]
[408336390,1773442245985,-200.0,0.00044345,2]
[408336391,1773442245995,-200.0,0.00044345,2]
[408336392,1773442246004,-200.0,0.00044345,2]
[408336393,1773442246013,-200.0,0.00044345,2]
[408336394,1773442246023,-200.0,0.00044345,2]
[408336395,1773442246032,-200.0,0.00044345,2]
[408336396,1773442246041,-192.0,0.00044345,2]
[408336397,1773442246051,-226.86,0.00044418,5]
[408336398,1773442246060,-250.5325,0.000445,2]
[408336399,1773442246069,-3351.33016008,0.00044505,15]
[408336400,1773442246079,-506.0,0.00044547,18]
[408336401,1773442246088,-6820.0283618,0.00044635,10]
[408336402,1773442246098,-277.5995,0.000448,2]
[408336403,1773442246107,-2038.0,0.000448,7]
[408336404,1773442246119,-500.0,0.00044999,120]
[408336405,1773442246128,-165.33508127,0.00044999,120]
[408336406,1773442246137,-500.0,0.00044999,10]
[408336407,1773442246146,-39954.25170946,0.00045,120]
[408336408,1773442246156,-190.59793501,0.00045,2]
[408336409,1773442246165,-160.0,0.00045,120]
[408336410,1773442246176,-1473.6809,0.00045058,2]
[408336411,1773442246186,-307.5908,0.000451,2]
[408336412,1773442246196,-150.0,0.00045336,120]
[408336413,1773442246205,-340.8222,0.000454,2]
[408336414,1773442246215,-5563.66501089,0.00045493,15]
[408336415,1773442246224,-377.6439,0.000457,2]
[408336416,1773442246233,-506.0,0.00045769,20]
[408336417,1773442246243,-1000.0,0.000459,16]
[408336418,1773442246252,-150.06342039,0.00045955,2]
[408336419,1773442246262,-418.4438,0.00046,2]
[408336420,1773442246271,-189.0,0.00046,30]
[408336421,1773442246280,-20588.09999394,0.00046,120]
[408336422,1773442246290,-249.70163641,0.00046027,2]
[408336423,1773442246299,-463.6516,0.000463,2]
[408336424,1773442246310,-15239.4558166,0.000464,120]
[408336425,1773442246319,-513.7435,0.000466,2]
[408336426,1773442246328,-157.1,0.00046663,2]
[408336427,1773442246338,-211.52193993,0.00046681,18]
[408336428,1773442246347,-546.0,0.00046783,120]
[408336429,1773442246356,-986.994702,0.00046835,2]
[408336430,1773442246366,-150.0,0.00046836,30]
[408336431,1773442246375,-569.2472,0.000469,2]
[408336432,1773442246385,-1343.0,0.00046917,2]
[408336433,1773442246395,-3351.33016008,0.00046953,15]
[408336434,1773442246404,-350.0,0.00046961,9]
[408336435,1773442246414,-506.0,0.00046992,21]
[408336436,1773442246424,-189.0,0.00047,30]
[408336437,1773442246434,-565.82206852,0.00047122,120]
[408336438,1773442246443,-500.0,0.00047122,30]
[408336439,1773442246452,-1767.47,0.00047123,2]
[408336440,1773442246462,-1767.47,0.00047123,2]
[408336441,1773442246471,-1767.47,0.00047123,2]
[408336442,1773442246481,-1767.47,0.00047123,2]
[408336443,1773442246491,-1767.47,0.00047123,2]
[408336444,1773442246501,-1767.47,0.00047123,2]
[408336445,1773442246510,-1767.47,0.00047123,2]
[408336446,1773442246520,-1767.47,0.00047123,2]
[408336447,1773442246528,-1767.47,0.00047123,2]
[408336448,1773442246538,-1767.47,0.00047123,2]
[408336449,1773442246550,-1767.47,0.00047123,2]
[408336450,1773442246560,-1767.47,0.00047123,2]
[408336451,1773442246569,-1767.47,0.00047123,2]
[408336452,1773442246578,-1767.47,0.00047123,2]
[408336453,1773442246588,-1767.47,0.00047123,2]
[408336454,1773442246597,-1767.47,0.00047123,2]
[408336455,1773442246607,-1767.47,0.00047123,2]
[408336456,1773442246618,-1767.47,0.00047123,2]
[408336457,1773442246629,-1767.47,0.00047123,2]
[408336458,1773442246639,-1767.47,0.00047123,2]
[408336459,1773442246649,-1767.47,0.00047123,2]
[408336460,1773442246659,-1767.47,0.00047123,2]
[408336461,1773442246669,-1767.47,0.00047123,2]
[408336462,1773442246679,-1767.6607929,0.00047123,2]
[408336463,1773442246688,-500.0,0.00047123,2]
[408336464,1773442246699,-501.28454261,0.00047123,2]
[408336465,1773442246708,-500.0,0.00047123,2]
[408336466,1773442246718,-500.0,0.00047123,2]
[408336467,1773442246727,-571.2651174,0.00047123,2]
[408336468,1773442246736,-875.26,0.00047123,2]
[408336469,1773442246746,-875.26,0.00047123,2]
[408336470,1773442246755,-875.26,0.00047123,2]
[408336471,1773442246764,-875.26,0.00047123,2]
[408336472,1773442246776,-875.26,0.00047123,2]
[408336473,1773442246785,-875.26,0.00047123,2]
[408336474,1773442246795,-875.26,0.00047123,2]
[408336475,1773442246804,-875.26,0.00047123,2]
[408336476,1773442246814,-875.26,0.00047123,2]
[408336477,1773442246822,-875.26,0.00047123,2]
[408336478,1773442246832,-875.26,0.00047123,2]
[408336479,1773442246841,-875.26,0.00047123,2]
[408336480,1773442246851,-875.26,0.00047123,2]
[408336481,1773442246860,-875.26,0.00047123,2]
[408336482,1773442246869,-875.26,0.00047123,2]
[408336483,1773442246879,-875.26,0.00047123,2]
[408336484,1773442246888,-875.26,0.00047123,2]
[408336485,1773442246897,-875.26,0.00047123,2]
[408336486,1773442246906,-875.26,0.00047123,2]
[408336487,1773442246915,-875.26,0.00047123,2]
[408336488,1773442246925,-875.26,0.00047123,2]
[408336489,1773442246935,-875.26,0.00047123,2]
[408336490,1773442246944,-875.26,0.00047123,2]
[408336491,1773442246953,-875.32000001,0.00047123,2]
[408336492,1773442246963,-500.0,0.00047123,2]
[408336493,1773442246973,-500.0,0.00047123,2]
[408336494,1773442246982,-500.0,0.00047123,2]
[408336495,1773442246991,-500.0,0.00047123,2]
[408336496,1773442247001,-500.0,0.00047123,2]
[408336497,1773442247010,-500.0,0.00047123,2]
[408336498,1773442247019,-500.0,0.00047123,2]
[408336499,1773442247028,-500.0,0.00047123,2]
[408336500,1773442247038,-500.0,0.00047123,2]
[408336501,1773442247048,-500.0,0.00047123,2]
[408336502,1773442247057,-500.0,0.00047123,2]
[408336503,1773442247067,-500.0,0.00047123,2]
[408336504,1773442247076,-222.85579708,0.00047123,2]
[408336505,1773442247085,-500.0,0.00047123,2]
[408336506,1773442247094,-500.0,0.00047123,2]
[408336507,1773442247103,-500.0,0.00047123,2]
[408336508,1773442247112,-500.0,0.00047123,2]
[408336509,1773442247121,-500.0,0.00047123,2]
[408336510,1773442247130,-500.0,0.00047123,2]
[408336511,1773442247140,-259.59661994,0.00047123,2]
[408336512,1773442247150,-300.0,0.00047123,2]
[408336513,1773442247159,-300.0,0.00047123,2]
[408336514,1773442247169,-300.0,0.00047123,2]
[408336515,1773442247179,-300.0,0.00047123,2]
[408336516,1773442247188,-300.0,0.00047123,2]
[408336517,1773442247197,-300.0,0.00047123,2]
[408336518,1773442247206,-300.0,0.00047123,2]
[408336519,1773442247215,-300.0,0.00047123,2]
[408336520,1773442247225,-300.0,0.00047123,2]
[408336521,1773442247234,-300.0,0.00047123,2]
[408336522,1773442247243,-300.0,0.00047123,2]
[408336523,1773442247254,-300.0,0.00047123,2]
[408336524,1773442247263,-300.0,0.00047123,2]
[408336525,1773442247272,-423.71478654,0.00047123,2]
[408336526,1773442247281,-427.56,0.00047123,2]
[408336527,1773442247291,-427.56,0.00047123,2]
[408336528,1773442247300,-427.56,0.00047123,2]
[408336529,1773442247310,-427.56,0.00047123,2]
[408336530,1773442247319,-427.56,0.00047123,2]
[408336531,1773442247329,-427.56,0.00047123,2]
[408336532,1773442247338,-427.56,0.00047123,2]
[408336533,1773442247348,-427.56,0.00047123,2]
[408336534,1773442247357,-427.56,0.00047123,2]
[408336535,1773442247367,-427.56,0.00047123,2]
[408336536,1773442247377,-427.56,0.00047123,2]
[408336537,1773442247387,-427.56,0.00047123,2]
[408336538,1773442247397,-427.56,0.00047123,2]
[408336539,1773442247407,-427.56,0.00047123,2]
[408336540,1773442247416,-427.56,0.00047123,2]
[408336541,1773442247595,-427.56,0.00047123,2]
[408336542,1773442247605,-427.56,0.00047123,2]
[408336543,1773442247615,-427.56,0.00047123,2]
[408336544,1773442247629,-427.56,0.00047123,2]
[408336545,1773442247638,-427.56,0.00047123,2]
[408336546,1773442247647,-427.56,0.00047123,2]
[408336547,1773442247656,-427.56,0.00047123,2]
[408336548,1773442247666,-427.56,0.00047123,2]
[408336549,1773442247676,-427.7243403,0.00047123,2]
[408336550,1773442247685,-1000.0,0.00047123,2]
[408336551,1773442247696,-1000.0,0.00047123,2]
[408336552,1773442247705,-1000.0,0.00047123,2]
[408336553,1773442247715,-1000.0,0.00047123,2]
[408336554,1773442247725,-1000.0,0.00047123,2]
[408336555,1773442247734,-1000.0,0.00047123,2]
[408336556,1773442247743,-1000.0,0.00047123,2]
[408336557,1773442247753,-1000.0,0.00047123,2]
[408336558,1773442247762,-1000.0,0.00047123,2]
[408336559,1773442247774,-1000.0,0.00047123,2]
[408336560,1773442247785,-1000.0,0.00047123,2]
[408336561,1773442247795,-1000.0,0.00047123,2]
[408336562,1773442247806,-1000.0,0.00047123,2]
[408336563,1773442247815,-1000.0,0.00047123,2]
[408336564,1773442247825,-1000.0,0.00047123,2]
[408336565,1773442247836,-1000.0,0.00047123,2]
[408336566,1773442247846,-1000.0,0.00047123,2]
[408336567,1773442247855,-638.96460246,0.00047123,2]
[408336568,1773442247865,-1373.23,0.00047123,2]
[408336569,1773442247875,-1373.23,0.00047123,2]
[408336570,1773442247884,-1373.23,0.00047123,2]
[408336571,1773442247893,-1373.23,0.00047123,2]
[408336572,1773442247903,-1373.23,0.00047123,2]
[408336573,1773442247912,-1373.23,0.00047123,2]
[408336574,1773442247921,-1373.23,0.00047123,2]
[408336575,1773442247930,-1373.23,0.00047123,2]
[408336576,1773442247939,-1373.23,0.00047123,2]
[408336577,1773442247948,-1373.23,0.00047123,2]
[408336578,1773442247957,-1373.23,0.00047123,2]
[408336579,1773442247967,-1373.23,0.00047123,2]
[408336580,1773442247976,-1373.23,0.00047123,2]
[408336581,1773442247985,-1373.23,0.00047123,2]
[408336582,1773442247994,-1373.23,0.00047123,2]
[408336583,1773442248004,-1373.23,0.00047123,2]
[408336584,1773442248013,-1373.23,0.00047123,2]
[408336585,1773442248022,-1373.23,0.00047123,2]
[408336586,1773442248031,-1373.23,0.00047123,2]
[408336587,1773442248041,-1373.23,0.00047123,2]
[408336588,1773442248050,-1373.23,0.00047123,2]
[408336589,1773442248059,-1373.23,0.00047123,2]
[408336590,1773442248069,-1373.23,0.00047123,2]
[408336591,1773442248078,-1373.30258524,0.00047123,2]
[408336592,1773442248087,-500.0,0.00047123,2]
[408336593,1773442248096,-500.0,0.00047123,2]
[408336594,1773442248106,-500.0,0.00047123,2]
[408336595,1773442248115,-500.0,0.00047123,2]
[408336596,1773442248124,-500.0,0.00047123,2]
[408336597,1773442248134,-500.0,0.00047123,2]
[408336598,1773442248143,-500.0,0.00047123,2]
[408336599,1773442248152,-500.0,0.00047123,2]
[408336600,1773442248162,-500.0,0.00047123,2]
[408336601,1773442248171,-500.0,0.00047123,2]
[408336602,1773442248180,-500.0,0.00047123,2]
[408336603,1773442248190,-500.0,0.00047123,2]
[408336604,1773442248201,-500.0,0.00047123,2]
[408336605,1773442248209,-500.0,0.00047123,2]
[408336606,1773442248219,-500.0,0.00047123,2]
[408336607,1773442248228,-360.55708541,0.00047123,2]
[408336608,1773442248237,-160.31197084,0.00047196,2]
[408336609,1773442248246,-630.7475,0.000472,2]
[408336610,1773442248256,-5853.9050672,0.0004738,90]
[408336611,1773442248265,-5563.66501089,0.00047446,15]
[408336612,1773442248274,-698.8921,0.000475,2]
[408336613,1773442248284,-175.32047108,0.000475,120]
[408336614,1773442248293,-150.0,0.00047553,120]